bitfinex/quotes_SOLUSD_20250915
["timestamp","ask_amount","ask_price","bid_price","bid_amount"]
[1757940084475,60.09389305,236.54,236.53,1e-08]
[1757940085396,59.39389305,236.54,236.53,1e-08]
[1757940086184,57.69851085,236.54,236.53,1e-08]
[1757940087093,57.69846726,236.54,236.53,1e-08]
[1757940088181,24.33846726,236.54,236.53,1e-08]
[1757940088380,57.69846726,236.54,236.53,1e-08]
[1757940091298,59.39399319,236.54,236.53,1e-08]
[1757940091879,56.77195661,236.54,236.53,1e-08]
[1757940092089,44.87188853,236.54,236.53,1e-08]
[1757940092285,58.46748254,236.54,236.53,0.68000001]
[1757940092495,56.77195661,236.54,236.53,0.68000001]
[1757940092884,23.41195661,236.54,236.53,0.68000001]
[1757940093082,56.75195661,236.54,236.53,0.68000001]
[1757940093285,23.41195661,236.54,236.53,0.68000001]
[1757940093602,56.75195661,236.54,236.53,0.68000001]
[1757940093803,57.41195661,236.54,236.53,1e-08]
[1757940094190,56.75195661,236.54,236.53,1e-08]
[1757940095705,55.10115829,236.54,236.53,1e-08]
[1757940095902,8.16556428,236.54,236.53,0.68000001]
[1757940096103,5.31646916,236.54,236.53,0.68000001]
[1757940096988,6.96726748,236.54,236.53,1e-08]
[1757940097177,9.81583882,236.54,236.53,1e-08]
[1757940098010,9.81583882,236.54,236.53,0.68000001]
[1757940099092,8.1650405,236.54,236.53,0.68000001]
[1757940099295,23.41143283,236.54,236.53,1e-08]
[1757940106021,23.41143283,236.54,236.53,0.68000001]
[1757940106601,23.41143283,236.54,236.53,1e-08]
[1757940107408,23.41143283,236.54,236.53,0.68000001]
[1757940108144,21.76063451,236.54,236.53,0.68000001]
[1757940108310,23.41143283,236.54,236.53,0.68000001]
[1757940109430,9.81583882,236.54,236.53,0.68000001]
[1757940110307,43.11583882,236.54,236.53,0.68000001]
[1757940110520,41.4650405,236.54,236.53,0.68000001]
[1757940111010,1.08885439,236.54,236.53,2.33079833]
[1757940111823,0.03,236.54,236.53,2.33079833]
[1757940112909,0.03,236.54,236.53,6.55859184]
[1757940122118,0.03,236.54,236.53,1e-08]
[1757940122429,2.37079832,236.54,236.53,1e-08]
[1757940122632,15.96639233,236.54,236.53,1e-08]
[1757940123225,17.66206201,236.54,236.53,1e-08]
[1757940124420,21.88967678,236.54,236.53,1e-08]
[1757940126241,13.59559401,236.53,236.52,1e-08]
[1757940126444,65.06122996,236.53,236.52,1e-08]
[1757940126739,65.06122996,236.53,236.51,0.06]
[1757940126740,65.75122996,236.53,236.51,1e-08]
[1757940127037,13.59559401,236.5,236.41,0.75]
[1757940127241,46.85559401,236.49,236.41,0.75]
[1757940127434,47.54559401,236.49,236.41,0.75]
[1757940128437,59.7100999,236.49,236.41,0.75]
[1757940129636,59.7100999,236.49,236.41,0.1]
[1757940129821,41.24639233,236.46,236.41,0.1]
[1757940130027,80.74636045,236.46,236.41,0.1]
[1757940130340,81.43636045,236.46,236.41,0.1]
[1757940130531,85.66540553,236.46,236.41,0.1]
[1757940132142,87.3617224,236.46,236.41,0.1]
[1757940132344,87.3617224,236.46,236.43,1e-08]
[1757940132345,15.24639233,236.44,236.43,1e-08]
[1757940132521,194.97801147,236.44,236.43,1e-08]
[1757940132719,195.66801147,236.44,236.43,1e-08]
[1757940133155,197.36461614,236.44,236.43,1e-08]
[1757940133321,64.86461614,236.44,236.43,1e-08]
[1757940133720,69.09401894,236.44,236.43,1e-08]
[1757940134426,66.25601728,236.44,236.43,1e-08]
[1757940135938,69.08896375,236.44,236.43,1e-08]
[1757940136134,35.82896375,236.44,236.43,1e-08]
[1757940136338,66.25601728,236.44,236.43,1e-08]
[1757940136541,32.99601728,236.44,236.43,1e-08]
[1757940136738,66.25601728,236.44,236.43,1e-08]
[1757940137626,32.30601728,236.44,236.43,1e-08]
[1757940137946,91.56601728,236.44,236.43,1e-08]
[1757940138246,92.25601728,236.44,236.43,1e-08]
[1757940139023,58.30601728,236.44,236.43,1e-08]
[1757940139230,91.56601728,236.44,236.43,1e-08]
[1757940139733,58.30601728,236.44,236.43,1e-08]
[1757940139931,91.56601728,236.44,236.43,1e-08]
[1757940140444,58.30601728,236.44,236.43,1e-08]
[1757940140661,91.56601728,236.44,236.43,1e-08]
[1757940141532,89.86941261,236.44,236.43,1e-08]
[1757940144551,56.60941261,236.44,236.43,1e-08]
[1757940144737,89.86941261,236.44,236.43,1e-08]
[1757940146449,89.86941261,236.44,236.43,0.65000001]
[1757940146652,50.36944449,236.44,236.43,0.65000001]
[1757940146853,39.14020112,236.44,236.43,0.65000001]
[1757940148560,1.65079832,236.44,236.43,0.65000001]
[1757940148763,33.26,236.45,236.43,0.65000001]
[1757940148964,26.0,236.48,236.43,0.65000001]
[1757940148965,4.22878553,236.48,236.43,0.65000001]
[1757940149139,1.65079832,236.47,236.43,0.65000001]
[1757940149339,1.65079832,236.46,236.43,0.65000001]
[1757940150862,39.13963744,236.48,236.43,0.65000001]
[1757940151440,1.65079832,236.5,236.43,4.87957896]
[1757940151738,35.81927704,236.51,236.44,0.72]
[1757940152155,35.81927704,236.51,236.44,3.29927704]
[1757940152357,35.81927704,236.51,236.45,0.72]
[1757940152562,33.24,236.51,236.45,7.52842506]
[1757940152763,0.03,236.54,236.46,0.72]
[1757940152965,35.81927704,236.53,236.46,0.72]
[1757940153456,35.81927704,236.53,236.47,2.57927704]
[1757940153663,35.81927704,236.53,236.48,0.72]
[1757940153864,132.5,236.52,236.48,0.72]
[1757940154056,33.24,236.53,236.49,2.57927704]
[1757940154261,33.24,236.53,236.5,0.72]
[1757940156269,6.83693337,236.54,236.5,0.72]
[1757940156270,2.60927704,236.54,236.5,0.72]
[1757940156467,0.03,236.53,236.5,0.72]
[1757940157561,0.03,236.53,236.23,0.72]
[1757940157562,26.0,236.35,236.23,0.72]
[1757940157746,13.59559401,236.32,236.27,0.72]
[1757940157952,9.76305003,236.34,236.21,0.1]
[1757940158141,6.81082748,236.32,236.28,0.72]
[1757940158345,7.8706696,236.32,236.28,0.72]
[1757940158554,5.29139256,236.32,236.28,0.72]
[1757940158746,21.46626361,236.32,236.28,0.72]
[1757940159154,21.46626361,236.32,236.25,0.72]
[1757940159967,22.16626361,236.32,236.25,0.72]
[1757940160149,18.88698657,236.32,236.21,0.1]
[1757940160350,21.46626361,236.32,236.28,0.72]
[1757940160849,7.8706696,236.32,236.21,0.1]
[1757940161057,7.8706696,236.32,236.29,0.72]
[1757940163258,6.81082748,236.32,236.29,0.72]
[1757940163452,6.81082748,236.32,236.26,0.72]
[1757940163648,20.40642149,236.32,236.26,0.72]
[1757940163874,21.10642149,236.32,236.26,0.72]
[1757940164366,21.10642149,236.32,236.31,1e-08]
[1757940164562,23.92527152,236.32,236.31,1e-08]
[1757940165562,23.92425946,236.32,236.31,1e-08]
[1757940166458,13.59559401,236.28,236.22,0.72]
[1757940166659,2.57927704,236.23,236.22,0.72]
[1757940166949,3.63930549,236.23,236.22,0.72]
[1757940168375,5.29319104,236.23,236.22,0.72]
[1757940168672,7.87246808,236.23,236.22,0.72]
[1757940168867,6.81243963,236.23,236.22,0.72]
[1757940169074,7.87253703,236.23,236.22,0.72]
[1757940169475,7.87253703,236.23,236.21,0.1]
[1757940169653,1.0600974,236.22,236.21,0.82]
[1757940170150,3.63937444,236.22,236.21,0.82]
[1757940171574,4.13937444,236.22,236.21,0.82]
[1757940172083,4.13937444,236.22,236.21,0.1]
[1757940172656,4.13937444,236.22,236.21,0.82]
[1757940173272,1.5600974,236.22,236.21,0.82]
[1757940173582,4.13937444,236.22,236.21,0.82]
[1757940174786,8.37271624,236.22,236.21,0.82]
[1757940175582,8.37271624,236.22,236.21,0.88]
[1757940177577,8.37271624,236.22,236.21,0.16]
[1757940177759,5.7934392,236.22,236.21,0.16]
[1757940177963,8.37271624,236.22,236.21,0.86]
[1757940181390,5.7934392,236.22,236.21,0.86]
[1757940181755,5.7934392,236.22,236.21,0.16]
[1757940182678,13.59559401,236.2,236.19,0.1]
[1757940182879,13.59559401,236.2,236.11,0.1]
[1757940182880,16.17487105,236.12,236.11,0.1]
[1757940183053,13.59559401,236.11,235.93,10.5961143]
[1757940183252,2.57927704,236.06,236.02,0.69]
[1757940183471,2.57927704,236.06,236.03,0.69]
[1757940183662,4.23639059,236.05,236.04,0.69]
[1757940184265,2.57927704,236.11,236.04,0.69]
[1757940184462,2.57927704,236.11,236.05,2.57927704]
[1757940184661,3.63993667,236.11,236.06,0.69]
[1757940184864,3.63993667,236.11,236.07,0.69]
[1757940185061,2.57927704,236.11,236.07,0.69]
[1757940185265,6.81441171,236.12,236.08,0.69]
[1757940185460,6.81441171,236.12,236.09,0.69]
[1757940185672,2.57927704,236.11,236.07,0.69]
[1757940185869,2.57927704,236.11,236.05,0.69]
[1757940186177,2.57927704,236.1,236.05,0.69]
[1757940186585,34.98,236.11,236.06,0.69]
[1757940186780,34.98,236.11,236.07,0.69]
[1757940187089,2.57927704,236.1,236.07,0.69]
[1757940187463,34.98,236.11,236.08,0.69]
[1757940187464,37.55927704,236.11,236.08,0.69]
[1757940187680,37.55927704,236.11,236.01,4.33703034]
[1757940187681,4.23549343,236.1,236.05,2.57927704]
[1757940187992,39.17459665,236.15,236.09,2.57927704]
[1757940188185,39.17459665,236.15,236.1,0.69]
[1757940188385,6.81387369,236.15,236.11,0.69]
[1757940188585,4.23459665,236.15,236.12,0.69]
[1757940188765,4.23423804,236.17,236.12,0.69]
[1757940188972,4.23423804,236.17,236.13,2.57927704]
[1757940189194,4.23423804,236.17,236.05,26.0]
[1757940189195,4.23423804,236.17,236.14,0.69]
[1757940189395,132.5,236.18,236.15,0.69]
[1757940189566,136.73403895,236.19,236.16,0.69]
[1757940189892,1.06043562,236.18,236.17,0.69]
[1757940190099,136.73403895,236.19,236.17,0.69]
[1757940190277,4.23403895,236.19,236.17,0.69]
[1757940190481,4.23403895,236.19,236.18,0.69]
[1757940190700,5.29441396,236.19,236.18,0.69]
[1757940192094,5.29441396,236.19,236.16,0.69]
[1757940192296,4.23403895,236.19,236.16,0.69]
[1757940192676,4.23403895,236.19,236.13,2.57927704]
[1757940192878,4.23403895,236.19,236.14,0.69]
[1757940193093,4.23403895,236.19,236.15,0.69]
[1757940193294,4.23403895,236.19,236.16,0.69]
[1757940194404,4.23403895,236.19,236.17,0.69]
[1757940195099,39.17370957,236.2,236.18,0.69]
[1757940195298,1.06036131,236.19,236.18,0.69]
[1757940195867,1.09036131,236.19,236.18,0.69]
[1757940196490,1.09036131,236.19,236.16,0.69]
[1757940196672,1.09036131,236.19,236.17,0.69]
[1757940197282,5.32429835,236.19,236.17,0.69]
[1757940197595,1.06036131,236.18,236.17,0.69]
[1757940197793,1.06036131,236.18,236.15,0.69]
[1757940198102,1.06036131,236.18,236.16,0.69]
[1757940198274,4.26393704,236.19,236.17,0.69]
[1757940198471,1.06033125,236.18,236.15,2.57927704]
[1757940198670,1.06033125,236.17,236.16,2.57927704]
[1757940198875,1.06033125,236.18,236.09,14.82485492]
[1757940199089,1.06033125,236.17,236.16,2.57927704]
[1757940199293,1.06033125,236.17,236.16,0.69]
[1757940201004,1.06033125,236.17,236.09,26.0]
[1757940201005,26.0,236.16,236.02,0.06]
[1757940201190,6.8160266,236.03,236.02,0.06]
[1757940201378,43.29635785,236.03,236.02,0.06]
[1757940201978,40.71708081,236.03,236.02,0.06]
[1757940203805,50.2852499,236.03,236.01,0.1]
[1757940204101,3.63960829,236.02,236.01,0.1]
[1757940204299,3.64047644,236.02,236.01,0.1]
[1757940204903,6.45743487,236.02,236.01,0.1]
[1757940205300,7.87740551,236.02,236.01,0.1]
[1757940208006,5.29812847,236.02,236.01,0.1]
[1757940208307,43.13740551,236.02,236.01,0.79]
[1757940208701,17.61607045,236.02,236.01,1e-08]
[1757940209011,26.0,235.98,235.91,0.1]
[1757940209195,26.0,235.94,235.92,0.69]
[1757940209506,3.64047644,235.93,235.91,0.1]
[1757940209722,1.0611994,235.92,235.91,0.1]
[1757940209905,3.64047644,235.92,235.91,0.1]
[1757940210092,7.87920143,235.92,235.91,0.1]
[1757940210916,40.77992439,235.92,235.91,0.69]
[1757940211291,5.29992439,235.92,235.91,0.69]
[1757940211890,7.87920143,235.92,235.91,0.69]
[1757940212397,18.4760139,235.92,235.88,0.69]
[1757940212613,1.0611994,235.91,235.89,0.69]
[1757940212913,17.4148145,235.92,235.89,0.69]
[1757940212914,1.0611994,235.9,235.89,0.69]
[1757940213112,3.64047644,235.9,235.89,0.69]
[1757940213500,1.0611994,235.9,235.89,0.69]
[1757940213698,1.0611994,235.9,235.87,0.69]
[1757940213905,1.0611994,235.89,235.88,0.69]
[1757940214306,5.30046346,235.89,235.88,0.69]
[1757940215199,5.30046346,235.89,235.86,0.2]
[1757940215200,5.30046346,235.89,235.86,0.89]
[1757940215402,1.0611994,235.88,235.86,0.2]
[1757940215602,1.0611994,235.87,235.86,0.2]
[1757940216322,5.30082292,235.87,235.86,0.2]
[1757940216500,1.65920725,235.9,235.86,0.89]
[1757940216697,1.06167387,235.89,235.86,0.2]
[1757940217004,1.06167387,235.88,235.87,0.69]
[1757940217216,1.06167387,235.89,235.88,0.69]
[1757940217416,1.06167387,235.9,235.88,0.69]
[1757940217720,1.06167387,235.9,235.89,0.69]
[1757940217910,1.65920725,235.98,235.89,2.34920725]
[1757940218218,2.72058345,235.97,235.9,2.34920725]
[1757940218399,1.65920725,235.94,235.86,0.2]
[1757940218602,1.0613762,235.95,235.87,2.34920725]
[1757940218817,2.72058345,235.95,235.88,2.34920725]
[1757940219118,1.0613762,235.95,235.9,1.65920725]
[1757940219419,1.0613762,235.95,235.91,0.69]
[1757940219599,1.0613762,235.95,235.9,1.65920725]
[1757940219600,1.0613762,235.95,235.92,0.69]
[1757940220199,4.23836568,235.94,235.92,0.69]
[1757940222416,4.23815799,235.96,235.93,0.69]
[1757940222616,1.06138998,235.95,235.92,1.65920725]
[1757940222920,26.0,235.93,235.86,0.2]
[1757940223123,1.65920725,235.88,235.86,0.2]
[1757940223921,2.72059723,235.88,235.86,0.2]
[1757940224125,1.06138998,235.87,235.86,0.2]
[1757940224334,4.23944378,235.88,235.86,0.2]
[1757940224631,1.06138998,235.87,235.86,0.2]
[1757940226712,5.3010135,235.87,235.86,0.2]
[1757940226910,5.3010135,235.87,235.86,0.89]
[1757940227716,4.23962352,235.87,235.86,0.89]
[1757940227919,5.30138749,235.87,235.86,0.89]
[1757940228319,5.30138749,235.87,235.86,0.2]
[1757940232538,5.97138749,235.87,235.86,0.2]
[1757940232741,5.30138749,235.87,235.86,0.2]
[1757940232916,5.30142515,235.87,235.86,0.2]
[1757940233117,5.30142515,235.87,235.86,0.89]
[1757940233636,38.92627948,235.92,235.86,2.54920725]
[1757940233637,10.59707223,235.92,235.86,2.54920725]
[1757940233828,1.061697,235.91,235.86,2.54920725]
[1757940234024,10.59707223,235.92,235.87,0.69]
[1757940234025,4.23926406,235.89,235.87,0.69]
[1757940234236,1.061697,235.88,235.87,0.69]
[1757940234617,1.061697,235.88,235.86,0.2]
[1757940234932,1.061697,235.88,235.86,0.89]
[1757940235946,4.23962352,235.87,235.86,0.89]
[1757940236333,1.06169676,235.87,235.86,0.89]
[1757940236551,5.30116821,235.88,235.86,0.89]
[1757940236731,1.06169676,235.87,235.86,0.89]
[1757940237421,1.06168271,235.93,235.86,2.54920725]
[1757940237743,1.06168271,235.93,235.89,1.65920725]
[1757940237744,1.06168271,235.92,235.89,1.65920725]
[1757940238046,1.06168271,235.91,235.89,2.31920725]
[1757940238220,1.06168271,235.9,235.89,2.31920725]
[1757940238420,1.06168271,235.91,235.89,2.31920725]
[1757940238633,1.06168271,235.9,235.89,2.31920725]
[1757940238843,1.06168271,235.91,235.89,0.66]
[1757940239045,1.06168271,235.9,235.89,0.66]
[1757940239819,26.0,235.97,235.89,2.31920725]
[1757940239820,1.06168271,235.91,235.89,2.31920725]
[1757940240024,4.23819375,235.95,235.9,2.31920725]
[1757940240321,1.06147187,235.94,235.91,2.31920725]
[1757940240520,1.06147187,235.93,235.91,2.31920725]
[1757940240728,1.06147187,235.92,235.91,1.65920725]
[1757940241230,1.06147187,235.92,235.91,2.31920725]
[1757940242447,1.06147187,235.92,235.91,0.66]
[1757940242650,1.06147187,235.92,235.91,1.65920725]
[1757940243030,6.02019686,235.92,235.86,0.2]
[1757940243343,1.06147187,235.91,235.86,1.85920725]
[1757940243547,1.06147187,235.9,235.86,1.85920725]
[1757940243730,1.06147187,235.89,235.87,1.65920725]
[1757940244042,1.06147187,235.88,235.87,1.65920725]
[1757940246049,5.30091565,235.88,235.87,1.65920725]
[1757940246544,1.06147187,235.88,235.87,1.65920725]
[1757940246733,1.06147187,235.88,235.87,2.34920725]
[1757940247327,1.06147187,235.88,235.87,6.58883077]
[1757940248238,0.06147187,235.88,235.87,6.58883077]
[1757940248441,0.06147187,235.88,235.87,32.58883077]
[1757940248628,0.06147187,235.88,235.87,81.38442478]
[1757940248837,2.82357865,235.99,235.88,13.59559401]
[1757940249045,7.06110336,235.99,235.95,1.65920725]
[1757940249347,4.23727665,236.01,235.95,0.69]
[1757940249650,0.72,236.02,235.96,1.65920725]
[1757940250027,2.82357865,236.03,235.98,1.65920725]
[1757940250341,7.06036274,236.03,235.99,2.34920725]
[1757940250648,4.23678409,236.03,235.99,2.34920725]
[1757940250828,4.23678409,236.03,235.99,1.65920725]
[1757940251429,4.23657007,236.04,235.99,1.65920725]
[1757940251632,4.95657007,236.04,235.99,1.65920725]
[1757940251838,2.82357865,236.05,235.99,1.65920725]
[1757940252031,2.82357865,236.05,236.0,2.34920725]
[1757940252237,2.82357865,236.05,236.01,1.65920725]
[1757940252440,13.80875429,236.08,236.02,1.65920725]
[1757940252627,4.23595816,236.08,236.03,1.65920725]
[1757940252827,0.72,236.07,236.02,1.65920725]
[1757940253640,0.72,236.07,236.02,2.34920725]
[1757940253839,4.95603429,236.07,236.02,2.34920725]
[1757940254030,4.95603429,236.07,235.97,26.0]
[1757940254031,0.5,236.05,235.99,0.69]
[1757940254235,0.5,236.05,236.0,1.65920725]
[1757940254533,0.5,236.05,236.0,2.34920725]
[1757940255056,4.73656661,236.05,236.0,2.34920725]
[1757940256137,4.73656661,236.05,236.0,1.65920725]
[1757940256349,4.73656661,236.05,236.01,2.34920725]
[1757940256850,0.5,236.05,236.01,1.65920725]
[1757940257046,0.5,236.05,236.0,4.23726078]
[1757940257047,0.1,236.09,236.04,1.65920725]
[1757940257239,0.72,236.08,236.03,1.65920725]
[1757940257435,4.33571356,236.09,236.03,1.65920725]
[1757940259053,4.33571356,236.09,236.03,5.89592812]
[1757940259353,4.33571356,236.09,236.04,0.69]
[1757940259552,4.33571356,236.09,236.04,2.34920725]
[1757940260142,0.1,236.09,236.04,2.34920725]
[1757940260433,0.72,236.08,236.03,5.8959173]
[1757940260629,0.1,236.09,236.03,5.8959173]
[1757940260845,0.1,236.09,236.03,6.5859173]
[1757940261360,0.1,236.09,236.04,2.34920725]
[1757940261565,0.1,236.09,236.07,1.65920725]
[1757940262048,0.1,236.09,236.07,2.34920725]
[1757940262830,0.1,236.09,236.07,1.65920725]
[1757940264663,0.1,236.09,236.08,2.34920725]
[1757940264836,0.1,236.09,236.08,0.69]
[1757940265038,0.1,236.09,236.08,2.34920725]
[1757940265447,0.1,236.09,236.08,6.5850595]
[1757940266238,0.1,236.09,236.08,20.18065351]
[1757940267561,0.1,236.09,236.08,55.02065351]
[1757940269265,0.2,236.18,236.09,13.59559401]
[1757940269566,0.2,236.18,236.17,1.65920725]
[1757940271063,0.2,236.18,236.17,5.89344529]
[1757940272453,0.2,236.18,236.17,6.59344529]
[1757940273160,0.2,236.18,236.17,5.89344529]
[1757940273867,0.2,236.18,236.17,6.81939564]
[1757940274754,0.2,236.18,236.17,7.51939564]
[1757940276068,0.2,236.18,236.17,6.81939564]
[1757940276867,0.2,236.18,236.17,7.51939564]
[1757940277170,0.2,236.18,236.17,6.81939564]
[1757940278074,0.2,236.18,236.17,7.51939564]
[1757940281093,0.2,236.18,236.17,3.2851576]
[1757940281369,0.2,236.18,236.16,2.5851576]
[1757940281577,0.2,236.18,236.17,34.54]
[1757940284880,0.2,236.18,236.16,2.5851576]
[1757940285055,0.2,236.18,236.17,34.5]
[1757940285579,0.2,236.18,236.17,37.0851576]
[1757940285784,0.2,236.18,236.17,37.0651576]
[1757940286878,0.2,236.18,236.17,34.48]
[1757940287086,0.2,236.18,236.17,37.0651576]
[1757940287288,0.2,236.18,236.17,34.48]
[1757940287472,0.2,236.18,236.17,37.0651576]
[1757940287667,0.2,236.18,236.17,2.5851576]
[1757940287870,0.2,236.18,236.17,37.0451576]
[1757940288479,0.2,236.18,236.17,2.5851576]
[1757940288782,0.2,236.18,236.17,37.0051576]
[1757940289676,0.2,236.18,236.17,2.5851576]
[1757940289869,0.2,236.18,236.17,36.9851576]
[1757940290074,0.2,236.18,236.17,37.6851576]
[1757940290277,0.2,236.18,236.17,3.2851576]
[1757940290476,0.2,236.18,236.17,41.89939564]
[1757940292967,0.03,236.22,236.21,26.0]
[1757940293184,0.03,236.22,236.21,63.0051576]
[1757940293389,0.03,236.22,236.21,63.7051576]
[1757940293593,0.03,236.22,236.21,67.93867861]
[1757940296192,0.03,236.22,236.21,30.93352101]
[1757940296380,0.03,236.22,236.21,62.9451576]
[1757940296785,0.03,236.22,236.21,67.17867861]
[1757940297784,0.03,236.22,236.21,67.86867861]
[1757940300085,0.72,236.22,236.18,26.0]
[1757940300284,0.72,236.22,236.19,36.8851576]
[1757940300485,0.03,236.22,236.2,2.5851576]
[1757940300792,0.03,236.22,236.21,2.5851576]
[1757940301788,0.03,236.22,236.2,4.23370025]
[1757940301989,0.03,236.22,236.21,2.5851576]
[1757940302189,0.03,236.22,236.19,0.69]
[1757940302383,0.65,236.21,236.19,34.28]
[1757940302582,0.65,236.2,236.19,34.28]
[1757940303808,0.65,236.2,236.17,34.26]
[1757940304013,0.65,236.19,236.16,2.5851576]
[1757940304508,0.65,236.19,236.17,34.26]
[1757940304884,0.68,236.22,236.17,34.26]
[1757940305205,0.03,236.22,236.2,2.5851576]
[1757940305404,0.03,236.22,236.21,34.24]
[1757940305607,0.03,236.22,236.21,37.4951576]
[1757940305991,0.03,236.22,236.21,39.16352101]
[1757940306206,0.03,236.22,236.21,41.74867861]
[1757940306713,0.03,236.22,236.21,55.34427262]
[1757940310099,0.03,236.25,236.24,26.0]
[1757940310410,0.03,236.25,236.24,62.8051576]
[1757940310619,0.03,236.25,236.24,77.07075161]
[1757940310908,0.03,236.25,236.24,81.30373501]
[1757940313211,0.03,236.25,236.24,47.08373501]
[1757940313413,0.03,236.25,236.24,81.28373501]
[1757940313618,0.03,236.25,236.24,81.26373501]
[1757940314898,0.03,236.25,236.24,80.59373501]
[1757940315216,0.3,236.29,236.28,39.59559401]
[1757940315398,0.3,236.29,236.28,73.75559401]
[1757940315604,0.3,236.29,236.28,79.59590921]
[1757940316416,0.3,236.29,236.28,83.82817601]
[1757940316602,0.3,236.29,236.28,49.66817601]
[1757940316803,0.3,236.29,236.28,44.49786081]
[1757940317112,0.3,236.29,236.28,40.9974244]
[1757940317522,0.95,236.29,236.28,41.0174244]
[1757940317813,0.3,236.29,236.28,41.0174244]
[1757940320325,3.5351576,236.29,236.1,20.0]
[1757940320623,2.5851576,236.22,236.16,38.39441734]
[1757940320791,3.2351576,236.22,236.16,38.39441734]
[1757940321197,0.65,236.22,236.16,40.97957494]
[1757940321619,0.65,236.22,236.16,51.5656183]
[1757940321814,0.65,236.22,236.16,52.2356183]
[1757940322017,2.5851576,236.23,236.16,48.9804607]
[1757940322197,2.5851576,236.2,236.16,38.39441734]
[1757940322398,14.81356075,236.27,236.16,4.23441734]
[1757940322399,3.2351576,236.19,236.16,4.23441734]
[1757940322621,0.65,236.18,236.17,34.18]
[1757940322823,2.5851576,236.2,236.17,34.18]
[1757940323121,0.65,236.2,236.17,34.18]
[1757940323314,0.65,236.19,236.17,34.18]
[1757940323519,0.65,236.19,236.18,4.23405876]
[1757940325133,0.65,236.24,236.18,18.07436328]
[1757940325302,0.65,236.24,236.19,36.7651576]
[1757940325497,0.65,236.24,236.2,4.23370025]
[1757940325704,0.65,236.26,236.21,2.5851576]
[1757940325917,0.65,236.25,236.21,2.5851576]
[1757940326310,0.65,236.24,236.2,17.40310848]
[1757940326504,2.5851576,236.27,236.2,17.40310848]
[1757940326715,0.65,236.26,236.21,34.16]
[1757940326921,0.65,236.25,236.21,34.16]
[1757940327223,0.65,236.24,236.22,4.2333418]
[1757940329009,2.6151576,236.27,236.22,14.8166963]
[1757940329320,0.03,236.27,236.23,2.5851576]
[1757940329529,0.68,236.27,236.23,2.5851576]
[1757940330417,0.68,236.27,236.22,15.4866963]
[1757940330418,0.65,236.26,236.22,17.4018539]
[1757940331115,0.03,236.27,236.22,17.4018539]
[1757940331323,0.03,236.27,236.24,2.5851576]
[1757940332311,0.03,236.27,236.25,4.23280423]
[1757940333110,0.69,236.27,236.23,34.08]
[1757940333334,0.03,236.27,236.23,37.3751576]
[1757940333612,0.03,236.27,236.23,41.60829654]
[1757940333817,0.03,236.27,236.23,40.67685033]
[1757940334235,0.03,236.27,236.23,40.63685033]
[1757940334743,0.03,236.27,236.24,2.36371139]
[1757940335027,0.03,236.27,236.26,1.65371139]
[1757940335522,0.03,236.27,236.26,2.36371139]
[1757940336030,0.03,236.27,236.26,6.59633646]
[1757940336236,0.03,236.27,236.26,39.90633646]
[1757940337732,0.03,236.27,236.26,40.61633646]
[1757940338242,0.03,236.27,236.26,39.90633646]
[1757940338609,0.03,236.27,236.26,40.61633646]
[1757940339437,0.03,236.27,236.26,39.84633646]
[1757940339611,0.03,236.27,236.26,5.88633646]
[1757940339921,2.34371139,236.27,236.21,4.29347941]
[1757940340126,1.65371139,236.24,236.21,4.29347941]
[1757940340320,0.66,236.23,236.21,4.29347941]
[1757940341111,2.31371139,236.22,236.21,0.06]
[1757940344911,6.54705319,236.22,236.21,0.06]
[1757940351017,2.31371139,236.22,236.21,0.06]
[1757940351237,5.88705319,236.22,236.21,0.06]
[1757940351418,6.54705319,236.22,236.21,0.06]
[1757940352341,7.04705319,236.22,236.21,0.06]
[1757940354052,7.04705319,236.22,236.18,0.06]